[Event "Italian-ch Semifinal 2022"]
[Site "Acqui Terme"]
[Date "2022.06.15"]
[Round "4.7"]
[White "Misiano, Franco"]
[Black "Paduano, Claudio"]
[Result "1/2-1/2"]
[ECO "B33"]
[WhiteElo "2195"]
[BlackElo "2138"]
[Annotator "TA"]
[PlyCount "107"]
[EventDate "2022.06.15"]
[EventType "swiss"]
[EventCountry "ITA"]
[SourceTitle "playchess.com"]
[Source "ChessBase"]
[SourceQuality "1"]
[TimeControl "40/5400+30:1800+30"]

{[%evp 28,107,47,33,22,24,22,47,37,-12,-13,-12,-12,-28,-20,-20,-24,-36,-11,-38,-45,-34,-18,-24,-21,-13,-14,-15,-14,-15,0,0,0,0,0,0,0,0,61,56,56,45,45,45,181,171,162,83,83,45,53,53,244,256,236,0,0,0,0,0,0,0,0,0,0,0,0,0,0,0,0,0,0,0,0,0,0,0,0,0,0,0]} 1. e4 {[%emt 0:00:03]} c5 {[%emt 0:15:19]} 2. Nf3 {[%emt 0:00:10]} Nc6 {[%emt 0:00:19]} 3. d4 {[%emt 0:00:08]} cxd4 {[%emt 0:00:10]} 4. Nxd4 {[%emt 0:00:05]} Nf6 {[%emt 0:00:23]} 5. Nc3 {[%emt 0:00:09]} e5 {[%emt 0:00:21]} 6. Ndb5 {[%emt 0:00:12]} d6 {[%emt 0:00:12]} 7. Bg5 {[%emt 0:00:19]} a6 {[%emt 0:00:12]} 8. Na3 {[%emt 0:00:07]} b5 {[%emt 0:00:26]} 9. Bxf6 {[%emt 0:00:27]} gxf6 {[%emt 0:00:17]} 10. Nd5 {[%emt 0:00:06]} Bg7 {[%emt 0:02:07]} 11. Bd3 {[%emt 0:00:29]} Ne7 {[%emt 0:04:48]} 12. Nxe7 {[%emt 0:00:41]} Qxe7 {[%emt 0:00:43]} 13. c4 {[%emt 0:00:35]} f5 {[%emt 0:03:30]} 14. O-O {[%emt 0:00:20]} O-O {[%emt 0:01:08]} 15. Qh5 {[%emt 0:00:27]} ({Reject} 15. exf5 e4 16. Qe2 Re8 $15) 15... d5 {[%emt 0:32:47] B33: Sicilian: Pelikan and Sveshnikov Variations.} 16. cxd5 {[%emt 0:05:22]} Qd8 {[%emt 0:10:38]} 17. exf5 {[%emt 0:07:00][%cal Of5f6]} Qxd5 {[%emt 0:02:06] White is slightly better.} 18. f6 {[%emt 0:03:52]} (18. Rad1 $14 e4 19. Bxb5 $1 Qxf5 20. Qxf5 Bxf5 21. Bd7 Bxd7 22. Rxd7) 18... Qxd3 $11 {[%emt 0:02:20]} 19. fxg7 {[%emt 0:00:53]} Re8 {[%emt 0:00:44]} 20. Rad1 {[%emt 0:05:14]} Qg6 {[%emt 0:05:40]} 21. Qxg6 {[%emt 0:01:21] The board is on fire.} hxg6 {[%emt 0:00:18]} 22. Nc2 {[%emt 0:00:26] [#]} Kxg7 $146 {[%emt 0:03:16]} (22... Be6 {keeps more tension.} 23. a3 Bb3 24. Rc1 Red8) ({Predecessor:} 22... Be6 23. a3 Bb3 24. Rc1 Red8 25. Ne3 Rd2 26. Rc5 Rxb2 27. Rxe5 Ra2 28. f4 Rxa3 {0-1 (34) Baches Garcia,G (2329)-Lavrik,D (2425) Chess.com INT 2022}) 23. Rd6 {[%emt 0:03:00]} Be6 {[%emt 0:04:49]} 24. a3 $1 {[%emt 0:04:09]} Red8 {[%emt 0:05:40]} 25. Rfd1 {[%emt 0:02:01]} Rxd6 {[%emt 0:01:36]} 26. Rxd6 {[%emt 0:00:11][%mdl 4096] Endgame KRB-KRN} Rc8 {[%emt 0:01:09]} 27. Ne3 {[%emt 0:00:21]} Rc1+ {[%emt 0:02:07]} 28. Rd1 $1 {[%emt 0:00:13]} Rxd1+ {[%emt 0:00:25]} 29. Nxd1 {[%emt 0:00:06] KB-KN} Bb3 {[%emt 0:00:38]} 30. Nc3 {[%emt 0:00:27]} f5 {[%emt 0:00:37]} 31. f3 {[%emt 0:00:18]} Kf6 {[%emt 0:00:33]} 32. h4 {[%emt 0:01:54]} Bc2 {[%emt 0:00:40]} ({Black should try} 32... Be6 $11) 33. Nd5+ $14 {[%emt 0:02:26]} Ke6 $1 {[%emt 0:00:29]} 34. Nc7+ {[%emt 0:01:02]} Kd6 $1 {[%emt 0:00:14]} 35. Nxa6 {[%emt 0:00:06]} e4 {[%emt 0:00:47]} (35... f4 $1 $14) 36. Kf2 {[%emt 0:02:39] Hoping for Nb4.} f4 {[%emt 0:00:28]} 37. fxe4 {[%emt 0:01:32]} (37. Nb4 $18 Bb1 38. fxe4 Bxe4 39. Na2) 37... Bxe4 $16 {[%emt 0:00:17]} 38. Nb4 {[%emt 0:00:40]} Kc5 {[%emt 0:00:43]} 39. Na2 {[%emt 0:00:22] aiming for Nc3.} Kc4 {[%emt 0:00:32]} ({Black should play} 39... Kd4 $14) 40. Nc3 $18 {[%emt 0:00:00]} Bd3 {[%emt 0:00:00] [#]} 41. Kf3 $2 {[%emt 0:00:46]} (41. a4 $1 $18 {[%cal Ra4b5]}) 41... Kb3 $11 {[%emt 0:07:47] The position is equal.} 42. Kxf4 {[%emt 0:00:56] Strongly threatening Kg5.} Kxb2 {[%emt 0:00:18]} 43. Nxb5 {[%emt 0:00:13]} Bxb5 {[%emt 0:00:06] KB-K3P} 44. Kg5 {[%emt 0:00:05]} Bd3 {[%emt 0:01:20]} (44... Kxa3 $2 45. Kxg6 Bd3+ 46. Kf6 $18) 45. a4 {[%emt 0:00:27]} Kc3 {[%emt 0:00:33]} 46. a5 {[%emt 0:00:16]} Kd4 {[%emt 0:00:45]} 47. a6 {[%emt 0:00:19]} Bxa6 {[%emt 0:00:34]} 48. Kxg6 {[%emt 0:00:06] KB-KPP} Ke5 {[%emt 0:00:34]} 49. g4 {[%emt 0:01:55]} Bd3+ {[%emt 0:02:18]} 50. Kg7 {[%emt 0:01:13]} Kf4 {[%emt 0:00:19]} 51. h5 {[%emt 0:00:33]} Kxg4 {[%emt 0:00:23]} 52. h6 {[%emt 0:00:03]} Kg5 {[%emt 0:00:09]} 53. h7 {[%emt 0:00:04]} Bxh7 {[%emt 0:00:17]} 54. Kxh7 {[%emt 1:30:41] Weighted Error Value: White=0.15 (very precise) /Black=0.21 (precise)} 1/2-1/2

[Event "Italian-ch Semifinal 2022"]
[Site "Acqui Terme"]
[Date "2022.06.15"]
[Round "4.8"]
[White "Gioseffi, Massimiliano"]
[Black "Corvi, Marco"]
[Result "1/2-1/2"]
[ECO "E46"]
[WhiteElo "2136"]
[BlackElo "2318"]
[Annotator "TA"]
[PlyCount "74"]
[EventDate "2022.06.15"]
[EventType "swiss"]
[EventCountry "ITA"]
[SourceTitle "playchess.com"]
[Source "ChessBase"]
[SourceQuality "1"]
[TimeControl "40/5400+30:1800+30"]

{[%evp 12,74,0,0,61,35,51,51,56,62,72,82,87,65,83,84,123,133,129,108,175,156,163,183,187,127,131,121,127,125,121,102,98,102,102,95,99,96,114,102,115,104,99,90,106,69,122,62,91,72,123,110,181,181,201,138,141,0,185,0,160,0,189,0,178]} 1. d4 {[%emt 0:00:03]} Nf6 {[%emt 0:00:28]} 2. c4 {[%emt 0:00:08]} e6 {[%emt 0:00:04]} 3. Nc3 {[%emt 0:00:31]} Bb4 {[%emt 0:00:04]} 4. e3 {[%emt 0:00:23]} O-O {[%emt 0:00:19]} 5. Nge2 {[%emt 0:00:37]} Re8 {[%emt 0:01:57]} 6. a3 {[%emt 0:00:31]} Bf8 {[%emt 0:00:33]} 7. d5 {[%emt 0:01:47]} e5 {[%emt 0:01:25] E46: Nimzo-Indian: Rubinstein: 4 e3 0-0 5 Ne2 without early Bd3.} (7... a5 $11) 8. e4 {[%emt 0:04:47]} a5 {[%emt 0:02:26]} 9. Ng3 {[%emt 0:01:05]} Na6 {[%emt 0:08:54] White is slightly better.} 10. Bd3 {[%emt 0:01:10]} Nc5 {[%emt 0:06:18]} 11. Bc2 {[%emt 0:00:06] [#]} d6 $146 {[%emt 0:00:47]} ({Predecessor:} 11... c6 12. O-O b5 13. cxb5 cxb5 14. Nxb5 Ba6 15. a4 Rb8 16. Bg5 h6 17. Bxf6 Qxf6 {½-½ (72) Kasparov,S (2464)-Markos,J (2327) Pardubice 2000}) 12. h3 {[%emt 0:05:54]} c6 {[%emt 0:04:25]} 13. O-O {[%emt 0:03:58]} b5 {[%emt 0:20:34]} 14. dxc6 {[%emt 0:09:08]} bxc4 {[%emt 0:01:15]} 15. Bg5 {[%emt 0:05:40]} Be6 {[%emt 0:01:06]} (15... Ne6 $16) 16. Nd5 $18 {[%emt 0:04:06]} Bxd5 {[%emt 0:08:20]} 17. exd5 {[%emt 0:05:15]} Be7 {[%emt 0:00:24]} 18. Bxf6 {[%emt 0:09:44]} (18. Nf5 $18) 18... Bxf6 $16 {[%emt 0:00:18]} 19. Ne4 {[%emt 0:00:25]} Nxe4 {[%emt 0:04:33]} 20. Bxe4 {[%emt 0:00:06]} g6 {[%emt 0:03:07]} 21. Qc2 {[%emt 0:06:02]} Bg7 {[%emt 0:01:04]} 22. Qxc4 {[%emt 0:03:46]} f5 {[%emt 0:00:02]} 23. Bc2 {[%emt 0:00:14] White is more active.} e4 {[%emt 0:01:08]} 24. Rab1 {[%emt 0:01:10]} Be5 {[%emt 0:07:17]} 25. b4 {[%emt 0:09:59] [#] c7 is the strong threat.} axb4 {[%emt 0:04:13]} 26. axb4 {[%emt 0:00:07] Strongly threatening c7.} Qb6 {[%emt 0:01:43]} 27. Rfe1 {[%emt 0:06:55] Against e3} Re7 {[%emt 0:02:32]} 28. Rb3 {[%emt 0:04:46]} h5 {[%emt 0:00:53]} (28... Qd4 $14 29. Qxd4 Bxd4) 29. h4 {[%emt 0:08:19]} (29. Bb1 $16) 29... Bf6 {[%emt 0:02:37]} 30. g3 {[%emt 0:01:19]} Bd4 {[%emt 0:00:19]} (30... Qd4 $142 31. Qxd4 Bxd4) 31. Re2 {[%emt 0:01:12]} Rf7 {[%emt 0:03:24]} (31... Qa7 $16 {is a better defense.} 32. Rb1 Qb6) 32. Kg2 {[%emt 0:01:35]} Ra1 {[%emt 0:03:21]} 33. Rb1 {[%emt 0:01:59]} Ra3 {[%emt 0:03:12]} 34. Rb3 {[%emt 0:00:24] Prevents Rc3.} Ra1 {[%emt 0:03:04]} 35. Rb1 {[%emt 0:00:18] [#] aiming for Rd1.} Ra3 $1 {[%emt 0:02:08]} 36. Rb3 {[%emt 0:00:07]} Ra1 {[%emt 0:01:19]} 37. Rb1 $2 {[%emt 0:05:24]} (37. Rd2 $18 Be5 38. b5) 37... Raa7 $2 {Weighted Error Value: White=0.34/Black=0.16 (very precise)} (37... Ra3 $1 $11) 1/2-1/2

[Event "Italian-ch Semifinal 2022"]
[Site "Acqui Terme"]
[Date "2022.06.15"]
[Round "4.10"]
[White "Perossa, Nicolas"]
[Black "Franciosi, Fausto"]
[Result "1-0"]
[ECO "A53"]
[WhiteElo "2139"]
[BlackElo "2204"]
[Annotator "TA"]
[PlyCount "59"]
[EventDate "2022.06.15"]
[EventType "swiss"]
[EventCountry "ITA"]
[SourceTitle "playchess.com"]
[Source "ChessBase"]
[SourceQuality "1"]
[TimeControl "40/5400+30:1800+30"]

{[%evp 16,59,40,36,57,47,47,31,51,44,57,32,40,37,47,18,56,16,68,0,0,0,85,81,108,80,136,138,130,100,90,90,100,35,91,72,226,231,194,205,174,0,0,0,1297,1272]} 1. e4 {[%emt 0:00:01]} d6 {[%emt 0:00:45]} 2. d4 {[%emt 0:00:11]} Nf6 {[%emt 0:00:12]} 3. f3 {[%emt 0:00:26]} e5 {[%emt 0:04:15]} 4. Ne2 {[%emt 0:00:32]} Be7 {[%emt 0:03:30]} 5. Be3 {[%emt 1:31:50]} O-O {[%emt 0:04:14]} 6. c4 {[%emt 0:00:00]} Nbd7 {[%emt 0:06:22]} 7. Nbc3 {[%emt 0:00:00]} c6 {[%emt 0:04:02]} 8. d5 {[%emt 0:00:00]} cxd5 {[%emt 0:08:06]} 9. cxd5 {[%emt 0:00:00]} a6 {[%emt 0:02:14] A53: Old Indian Defence without Nf3.} 10. g4 {[%emt 0:00:00]} Ne8 {[%emt 0:12:35]} 11. Qd2 {[%emt 0:00:00]} Bh4+ {[%emt 0:04:21] White is slightly better.} 12. Ng3 {[%emt 0:00:00]} g6 {[%emt 0:03:45] [#]} 13. O-O-O $146 {[%emt 0:00:00]} ({Predecessor:} 13. Bd3 Kh8 14. O-O Ng7 15. b4 Nf6 16. Kg2 Bd7 17. a4 h5 18. h3 Nh7 19. Kh2 {½-½ (45) Blazeka,M (2385)-Markus,R (2599) Slovenia 2019}) 13... Ng7 {[%emt 0:04:38]} 14. Kb1 {[%emt 0:00:00]} b5 {[%emt 0:05:30]} 15. Rg1 {[%emt 0:00:00]} Kh8 {[%emt 0:04:34]} 16. Bd3 {[%emt 0:00:41]} Nf6 {[%emt 0:13:17]} (16... Qe7 $11) 17. Bh6 {[%emt 0:01:52]} (17. Nce2 $14) 17... Ng8 $11 {[%emt 0:01:27]} 18. Be3 {[%emt 0:00:26]} Bd7 {[%emt 0:01:50]} (18... Nf6 $1 $11) 19. Rc1 {[%emt 0:03:27]} Qe7 {[%emt 0:02:15]} 20. Nce2 $36 {[%emt 0:00:28][%cal Bc3e2,Be2g3,Bg3e4][%mdl 2080] White is on the roll.} f5 {[%emt 0:03:28]} ({Black should try} 20... Rfc8) 21. gxf5 {[%emt 0:00:19]} gxf5 {[%emt 0:00:03]} 22. Nxf5 {[%emt 0:00:43]} Nxf5 {[%emt 0:00:17]} 23. exf5 {[%emt 0:00:05]} Bxf5 {[%emt 0:00:54]} 24. Be4 {[%emt 0:00:35]} (24. Bxf5 $16 Rxf5 25. f4) 24... Rf7 {[%emt 0:04:52]} (24... Qd7 $14) 25. Ng3 {[%emt 0:00:50] White is more active.} Bg6 {[%emt 0:00:58] [#]} (25... Bxg3 $16 26. Rxg3 Qd7) 26. Bxg6 $18 {[%emt 0:00:16]} hxg6 {[%emt 0:00:02]} 27. Ne4 {[%emt 0:00:14]} Rxf3 {[%emt 0:02:42]} 28. Rxg6 $2 {[%emt 0:00:14]} ({White should play} 28. Bg5 $18 Bxg5 29. Qxg5) 28... Qh7 $11 {[%emt 0:00:18]} 29. Rcg1 {[%emt 0:01:05] aiming for Qc1.} Ne7 $2 {[%emt 0:00:11][%mdl 8192] [#]} (29... Rf1+ $11 30. Rxf1 Qxg6) 30. Rh6 {[%emt 0:00:05] Weighted Error Value: White=0.25 (precise) /Black=0.33} 1-0

[Event "Italian-ch Semifinal 2022"]
[Site "Acqui Terme"]
[Date "2022.06.16"]
[Round "6.1"]
[White "Palozza, Christian"]
[Black "Barp, Alberto"]
[Result "0-1"]
[ECO "D30"]
[WhiteElo "2284"]
[BlackElo "2384"]
[Annotator "TA"]
[PlyCount "118"]
[EventDate "2022.06.15"]
[EventType "swiss"]
[EventCountry "ITA"]
[SourceTitle "playchess.com"]
[Source "ChessBase"]
[SourceQuality "1"]
[TimeControl "40/5400+30:1800+30"]

{[%evp 17,118,30,27,-9,5,15,20,19,10,2,0,13,60,62,58,49,52,60,73,29,95,96,104,82,94,85,85,85,85,85,87,86,86,86,79,81,123,0,98,0,0,0,0,0,0,0,0,0,0,0,0,0,0,0,0,0,0,0,0,-97,-91,-100,-91,-99,-99,-207,-207,-412,-209,-620,-620,-1237,-1254,-1177,-620,-781,-448,-480,-236,-236,-236,-363,-363,-363,-305,-5158,-5136,-29968,-29968,-29966,-29967,-29969,-29970,-29978,-29979,-29978,-29978,-29985,-29978,-29988,-29989,-29989,-29990]} 1. d4 {[%emt 0:01:00]} Nf6 {[%emt 0:00:16]} 2. c4 {[%emt 0:00:05]} e6 {[%emt 0:00:03]} 3. g3 {[%emt 0:00:07]} d5 {[%emt 0:00:08]} 4. Nf3 {[%emt 0:00:18]} c5 {[%emt 0:00:07]} 5. cxd5 {[%emt 0:00:42]} exd5 {[%emt 0:00:05]} 6. Bg2 {[%emt 0:00:31]} Nc6 {[%emt 0:00:13]} 7. O-O {[%emt 0:00:07]} Be7 {[%emt 0:00:02]} 8. b3 {[%emt 0:05:55]} O-O {[%emt 0:01:56]} 9. Bb2 {[%emt 0:01:23]} Ne4 {[%emt 0:07:06]} 10. e3 {[%emt 0:16:12] D30: Queen's Gambit Declined: Systems without Nc3.} Bg4 {[%emt 0:09:56]} 11. dxc5 {[%emt 0:08:23]} Bf6 {[%emt 0:04:31]} 12. Qc1 {[%emt 0:11:38] [#] The position is equal.} Nxc5 $146 {[%emt 0:00:46]} ({Predecessor:} 12... Nb4 13. Nd4 Nd3 14. Qc2 Nb4 15. Qc1 Nd3 16. Qc2 Nb4 17. Qc1 {½-½ (17) Guasch Figuerola,A (2078)-Fernandez Aguado,E (2267) Barcelona 2022}) 13. Bxf6 {[%emt 0:05:58]} Qxf6 {[%emt 0:01:12]} 14. Qc3 {[%emt 0:00:12]} Rfd8 {[%emt 0:05:44]} (14... Qd6 $11 {is more appropriate.}) 15. Qxf6 $14 {[%emt 0:10:00]} gxf6 {[%emt 0:00:12]} 16. Nc3 {[%emt 0:00:07]} Rac8 {[%emt 0:05:26]} 17. Ne2 {[%emt 0:12:30]} Ne4 {[%emt 0:05:14]} 18. Rfd1 {[%emt 0:02:13]} Ne5 {[%emt 0:18:02]} (18... Ng5 $11 {remains equal.} 19. Nxg5 fxg5) 19. Nfd4 $1 $16 {[%emt 0:04:22]} Ng5 {[%emt 0:06:19] Inhibits f3.} 20. Rac1 {[%emt 0:01:36]} Nef3+ {[%emt 0:10:09]} 21. Nxf3 {[%emt 0:01:33]} (21. Bxf3 {is more complex.} Nxf3+ 22. Nxf3 Bxf3 23. Kf1) 21... Nxf3+ {[%emt 0:00:06]} 22. Bxf3 {[%emt 0:00:06]} Bxf3 {[%emt 0:00:05]} 23. Rxc8 {[%emt 0:00:07]} Rxc8 {[%emt 0:00:05]} 24. Rc1 {[%emt 0:00:05]} Rxc1+ {[%emt 0:03:10]} 25. Nxc1 {[%emt 0:00:01][%mdl 4096] Endgame KB-KN} Kg7 {[%emt 0:00:20]} 26. b4 {[%emt 0:09:50]} d4 {[%emt 0:07:16]} 27. a3 {[%emt 0:06:05]} (27. exd4 $16 {Hoping for Kf1.} Kg6 28. a3) 27... Kg6 {[%emt 0:01:16]} (27... dxe3 $11 {keeps the balance.} 28. fxe3 Kg6) 28. Nb3 {[%emt 0:00:20]} ({White should try} 28. exd4 $16 Kf5 29. Nb3) 28... dxe3 $11 {[%emt 0:03:58]} 29. fxe3 {[%emt 0:00:01]} Kf5 {[%emt 0:00:14]} 30. Kf2 {[%emt 0:00:05]} Bd5 {[%emt 0:04:11]} 31. Nd2 {[%emt 0:00:48]} Ke5 {[%emt 0:00:08]} 32. Ke2 {[%emt 0:00:14]} Be4 {[%emt 0:00:42]} 33. Nb3 {[%emt 0:01:58]} Kd5 {[%emt 0:00:45]} 34. Nd2 {[%emt 0:00:21]} Bc2 {[%emt 0:00:48]} 35. Ke1 {[%emt 0:00:43]} b6 {[%emt 0:01:43][%cal Bb7b6,Bb6a5,Ba5a4][%mdl 32]} 36. Ke2 {[%emt 0:00:25]} a5 {[%emt 0:01:57]} 37. bxa5 {[%emt 0:01:28]} bxa5 {[%emt 0:00:01]} 38. Nf3 {[%emt 0:00:16] [#]} (38. g4 $11) 38... Kc4 $1 $17 {[%emt 0:01:28] White is now going downhill.} 39. Kd2 {[%emt 0:00:08]} Be4 {[%emt 0:01:57]} 40. Nd4 {[%emt 0:00:00]} f5 {[%emt 0:00:00]} 41. h3 {[%emt 0:03:02]} (41. Ke2 $17) 41... a4 $19 {[%emt 0:05:45]} 42. h4 $2 {[%emt 0:00:36]} (42. Ke2) 42... h6 {[%emt 0:02:49]} (42... h5 $142 43. Ke2 Kc3 44. Nb5+ Kb3) 43. Ne2 $2 {[%emt 0:11:03]} (43. h5) 43... Kb3 {[%emt 0:02:01]} 44. Nd4+ {[%emt 0:00:01]} Kxa3 {[%emt 0:10:37] White must now prevent ...Kb2.} 45. Kc3 {[%emt 0:00:02]} Ka2 {[%emt 0:00:13]} 46. Nb5 {[%emt 0:07:26]} Bc6 {[%emt 0:00:17]} 47. Nd6 {[%emt 0:00:12]} Kb1 {[%emt 0:01:24]} ({Not} 47... a3 $2 48. Kb4 $19) (47... h5 $142 {Threatens to win with ...Kb1.} 48. Kc4 Kb1) 48. Kb4 {[%emt 0:03:33]} Kb2 {[%emt 0:00:33] Strongly threatening ...h5.} 49. h5 {[%emt 0:00:15] [#]} Bd7 $1 {[%emt 0:06:02]} 50. Nc4+ {[%emt 0:01:57]} Kc2 {[%emt 0:00:01] ...Be6 is the strong threat.} 51. Ne5 $2 {[%emt 0:00:07]} (51. Nd6 Be6 52. e4 (52. Kxa4 $2 Kd3 $19) 52... fxe4 53. Nxe4) 51... Be6 {[%emt 0:01:26][%cal Oa4a3] ( -> ...a3!)} 52. Kxa4 {[%emt 0:05:21]} Kd2 {[%emt 0:00:13] Black mates.} 53. Kb4 {[%emt 0:00:58]} Kxe3 {[%emt 0:00:05]} 54. Nc6 {[%emt 0:00:33]} Kf3 {[%emt 0:00:35]} 55. Ne7 {[%emt 0:00:05]} Kxg3 {[%emt 0:00:38]} 56. Ng8 {[%emt 0:00:11]} f4 {[%emt 0:02:00]} 57. Nxh6 {[%emt 0:00:11]} f6 {[%emt 0:00:25]} 58. Nf7 {[%emt 0:00:48]} Bxf7 {[%emt 0:00:05]} 59. h6 {[%emt 0:00:04]} Bg6 {[%emt 0:00:05] Weighted Error Value: White=0.64/Black=0.33} 0-1

[Event "Italian-ch Semifinal 2022"]
[Site "Acqui Terme"]
[Date "2022.06.16"]
[Round "6.2"]
[White "Lettieri, Giuseppe"]
[Black "Boraso, Alessio"]
[Result "1-0"]
[ECO "B30"]
[WhiteElo "2445"]
[BlackElo "2287"]
[Annotator "TA"]
[PlyCount "115"]
[EventDate "2022.06.15"]
[EventType "swiss"]
[EventCountry "ITA"]
[SourceTitle "playchess.com"]
[Source "ChessBase"]
[SourceQuality "1"]
[TimeControl "40/5400+30:1800+30"]

{[%evp 9,115,7,8,13,11,11,4,0,1,0,0,0,-1,-16,8,9,15,6,19,5,6,0,0,0,2,2,0,6,15,0,83,83,83,65,33,28,85,14,64,82,71,33,29,0,0,0,0,0,0,0,0,-3,-2,-35,26,0,0,0,10,0,0,0,0,0,0,0,0,0,0,0,0,-8,28,31,49,66,319,307,300,300,285,274,358,161,159,75,625,558,774,709,1133,1181,1093,1020,937,886,1202,1320,1233,1219,947,830,2449,2484,1953,1820,1541,903]} 1. e4 {[%emt 0:00:02]} c5 {[%emt 0:00:07]} 2. Nf3 {[%emt 0:00:04]} e6 {[%emt 0:00:07]} 3. Nc3 {[%emt 0:00:07]} Nc6 {[%emt 0:00:51]} 4. Bb5 {[%emt 0:00:10]} Nd4 {[%emt 0:02:16]} 5. Bd3 {[%emt 0:00:05][%cal Bb5d3,Bd3e4,Be4f3][%mdl 32]} a6 {[%emt 0:02:27]} 6. Nxd4 {[%emt 0:01:16] B30: Sicilian: 2...Nc6 3 Bb5, lines without ...g6.} cxd4 {[%emt 0:00:20]} 7. Ne2 {[%emt 0:00:05]} d5 {[%emt 0:08:02]} 8. O-O {[%emt 0:10:57] The position is equal.} dxe4 {[%emt 0:04:42]} 9. Bxe4 {[%emt 0:00:04]} Nf6 {[%emt 0:01:48]} 10. Bf3 {[%emt 0:00:12]} Bc5 {[%emt 0:10:43][%cal Bf8c5,Bc5b6,Bb6c7][%mdl 32] [#]} 11. b4 $146 {[%emt 0:07:30]} ({Predecessor:} 11. d3 O-O 12. Ng3 e5 13. Re1 Qd6 14. a3 h6 15. Bd2 a5 16. b4 axb4 17. axb4 Rxa1 18. Qxa1 Bxb4 19. Bxb4 Qxb4 20. Rxe5 {1-0 (33) Cano Mateos,P (1840)-Perez Bolanos,D (2038) Salobrena 2021}) 11... Bb6 {[%emt 0:03:55]} 12. c4 {[%emt 0:02:10]} O-O {[%emt 0:04:20]} 13. d3 {[%emt 0:04:47]} Re8 {[%emt 0:01:52]} 14. Bg5 {[%emt 0:12:07]} h6 {[%emt 0:07:48]} 15. Bxf6 {[%emt 0:00:11]} Qxf6 {[%emt 0:00:01]} 16. a4 {[%emt 0:07:27]} Bc7 {[%emt 0:05:22]} 17. c5 {[%emt 0:13:13]} Rb8 {[%emt 0:11:07]} 18. Qc2 {[%emt 0:14:40]} h5 {[%emt 0:07:22]} 19. b5 {[%emt 0:08:21][%cal Bb4b5,Bb5b6][%mdl 32]} e5 {[%emt 0:04:23]} (19... Bd7 $11 {keeps the balance.}) 20. b6 $16 {[%emt 0:01:26]} ({Much worse is} 20. Bxh5 Bd7 $14) 20... Bd8 {[%emt 0:01:01]} 21. a5 {[%emt 0:02:13]} Bd7 {[%emt 0:04:58]} 22. Ng3 {[%emt 0:02:59]} Bc6 {[%emt 0:01:37]} (22... Qe6 $1 $11) 23. Ne4 {[%emt 0:00:51]} (23. Nxh5 $16 Qg6 24. Qe2) 23... Qg6 {[%emt 0:01:06]} (23... Qe6 $11) 24. Qe2 $14 {[%emt 0:00:14] White is more active.} Be7 {[%emt 0:03:22]} 25. Rac1 {[%emt 0:01:20]} h4 {[%emt 0:00:39]} 26. Nd6 {[%emt 0:03:15]} (26. h3 $5 {[%cal Re4d6]}) 26... Bxf3 {[%emt 0:00:47]} 27. Qxf3 {[%emt 0:00:01]} Bxd6 {[%emt 0:00:24]} 28. cxd6 {[%emt 0:00:01]} e4 {[%emt 0:03:02]} 29. dxe4 {[%emt 0:01:06][%cal Oe4e5] Black must now prevent e5!} Qxd6 {[%emt 0:00:15]} 30. Rc7 {[%emt 0:00:14]} Re7 {[%emt 0:00:46]} 31. Rfc1 {[%emt 0:01:16]} Rbe8 {[%emt 0:01:38]} ({Black should try} 31... Rd8 $15) 32. Rxe7 {[%emt 0:01:09]} Rxe7 $11 {[%emt 0:02:23][%mdl 4096] Endgame KQR-KQR} 33. Rc8+ {[%emt 0:03:09]} Kh7 {[%emt 0:00:00]} 34. Qh5+ {[%emt 0:00:51]} (34. g3 {feels hotter.} Qg6 35. Rc7 Rxe4 36. Qxf7 Re5 37. Rxb7 hxg3 38. Qxg6+ Kxg6 39. hxg3 Rxa5 40. Kg2) 34... Qh6 {[%emt 0:00:04]} 35. Qxh6+ {[%emt 0:00:13]} Kxh6 {[%emt 0:00:34] KR-KR} 36. f3 {[%emt 0:00:32]} Re5 {[%emt 0:01:36] Inhibits Rc5.} 37. Rc7 {[%emt 0:00:10][%csl LRb7,LRf7]} Rxa5 {[%emt 0:00:56]} 38. Rxf7 {[%emt 0:01:21]} Ra1+ {[%emt 0:03:02]} 39. Kf2 {[%emt 0:00:01]} Ra2+ {[%emt 0:00:04]} 40. Kf1 {[%emt 0:00:00]} Rb2 {[%emt 0:00:00]} 41. Rxb7 {[%emt 0:02:03]} Kg5 {[%emt 0:06:18] Hoping for ...Kf4.} (41... Rb1+ $2 42. Ke2 Rb5 43. Kd3 $18) 42. g3 {[%emt 0:07:52][%cal Bg2g3,Bg3h4][%mdl 32]} ({Worse is} 42. Rxg7+ Kf4 43. Rc7 d3 $17) 42... Rxh2 $2 {[%emt 0:13:32][%mdl 8192]} (42... g6 $1 $14) 43. Rxg7+ $18 {[%emt 0:03:40]} Kf6 {[%emt 0:03:08]} 44. Rg8 {[%emt 0:02:56] Threatens to win with b7.} Rb2 {[%emt 0:00:32]} 45. gxh4 {[%emt 0:00:28]} Ke5 {[%emt 0:01:39]} 46. Rf8 {[%emt 0:02:05]} (46. h5 $142 {h6 is the strong threat.} Rxb6 47. Kf2 Rb2+ 48. Kg3) 46... d3 {[%emt 0:08:36] [#] Strongly threatening ...Rb1+.} 47. Rd8 {[%emt 0:00:25]} ({Better is} 47. b7 $1 {[%cal Rb7b8]} Rxb7 48. Kf2) 47... Rxb6 {[%emt 0:01:34][%mdl 8192] [#]} (47... Kf4 $16) 48. Kf2 $1 {[%emt 0:01:58] White is clearly winning.} Rb3 {[%emt 0:02:49]} 49. Rd5+ {[%emt 0:00:47]} Ke6 {[%emt 0:00:04]} 50. Ke3 {[%emt 0:00:45]} d2+ {[%emt 0:00:20]} 51. Ke2 {[%emt 0:00:11]} a5 {[%emt 0:00:14]} 52. Rxd2 {[%emt 0:03:10]} a4 {[%emt 0:00:01]} 53. Rd5 {[%emt 0:01:12]} a3 {[%emt 0:00:55]} 54. Kf2 {[%emt 0:04:21]} Kf6 {[%emt 0:01:21]} 55. Ra5 {[%emt 0:01:34] And now Kg3 would win.} Kg6 {[%emt 0:00:05]} 56. Kg3 {[%emt 0:00:12]} Rc3 {[%emt 0:00:31]} 57. Kg4 {[%emt 0:00:31]} Kf6 {[%emt 0:00:48]} 58. f4 {[%emt 0:01:24] Weighted Error Value: White=0.15 (very precise) /Black=0.48} 1-0